[Event "IX Iberoamericano Championship 2023"]
[Site "Panama City"]
[Date "2023.12.01"]
[Round "7.2"]
[White "Diaz Perez, Michel Alejandro"]
[Black "Berdayes Ason, Dylan Isidro"]
[Result "1/2-1/2"]
[ECO "B15"]
[WhiteElo "2459"]
[BlackElo "2507"]
[Annotator "TA"]
[PlyCount "175"]
[EventDate "2023.11.27"]
[EventType "swiss"]
[EventCountry "PAN"]
[SourceTitle "playchess.com"]
[Source "ChessBase"]
[SourceQuality "1"]
[TimeControl "5400+30"]

{[%evp 29,175,-73,-51,-60,-51,-67,-25,-18,-24,-32,0,-87,-68,-92,-97,-96,-102,-93,-43,-57,-18,-77,-72,-79,-69,-68,-77,-153,-133,-164,-150,-215,-225,-226,-227,-224,-219,-245,-240,-349,-176,-169,-115,-204,-134,-216,0,-147,-153,-175,-169,-158,-161,-158,-104,-114,-121,-120,-111,-167,-133,-140,-122,-126,-6,0,41,-167,29,33,45,33,35,56,44,0,20,0,0,0,0,0,0,0,17,15,46,50,53,53,75,15,15,15,15,15,15,15,15,0,15,15,15,0,15,15,952,952,952,924,928,12799,11425,12010,6079,5064,1622,168,168,0,943,942,580,168,168,0,0,0,0,0,0,0,0,0,0,0,0,0,0,0,0,0,0,0,0,0,0,0]} 1. e4 {[%emt 0:00:10]} c6 {[%emt 0:00:07]} 2. d4 {[%emt 0:00:05]} d5 {[%emt 0:00:01]} 3. Nc3 {[%emt 0:00:19]} dxe4 {[%emt 0:00:03]} 4. Nxe4 {[%emt 0:00:05]} Nf6 {[%emt 0:00:01]} 5. Nxf6+ {[%emt 0:00:13]} exf6 {[%emt 0:00:03]} 6. Be3 {[%emt 0:02:04]} Bd6 {[%emt 0:00:33]} 7. Qd2 {[%emt 0:00:08]} O-O {[%emt 0:01:51]} 8. O-O-O {[%emt 0:03:10]} Be6 {[%emt 0:03:22]} 9. Kb1 {[%emt 0:00:22]} Na6 {[%emt 0:05:34]} 10. Bxa6 {[%emt 0:11:07]} bxa6 {[%emt 0:00:04]} 11. Ne2 {[%emt 0:00:14]} Rb8 {[%emt 0:05:05]} 12. Bf4 {[%emt 0:04:04]} Bb4 {[%emt 0:07:49]} 13. Qd3 {[%emt 0:07:36]} Rb5 {[%emt 0:02:08]} 14. Nc1 {[%emt 0:04:06]} Re8 {[%emt 0:04:14]} 15. f3 {[%emt 0:02:40]} a5 {[%emt 0:07:21]} (15... Qb6 $5 {[%cal Rb4d6]} 16. Ka1 Bf5 $15) 16. g4 {[%emt 0:08:44]} a4 {[%emt 0:05:46]} 17. h3 {[%emt 0:11:09]} Qa5 {[%emt 0:11:11]} (17... Bf8 {feels hotter.} 18. Rh2 a5 19. c4 Rb4) 18. c4 {[%emt 0:04:07]} Rb7 {[%emt 0:00:01]} 19. Rh2 {[%emt 0:00:33]} Rd8 {[%emt 0:00:25]} 20. Bd2 {[%emt 0:05:02]} (20. Rc2 $1 $11) 20... Qa6 $17 {[%emt 0:11:53]} 21. d5 {[%emt 0:07:43]} Be7 {[%emt 0:06:12]} 22. Be3 {[%emt 0:09:19]} cxd5 {[%emt 0:00:34]} 23. c5 {[%emt 0:00:07]} Qa5 {[%emt 0:03:07]} (23... Qxd3+ $17 24. Rxd3 Rc7) 24. Rc2 $15 {[%emt 0:00:29]} Rc8 {[%emt 0:02:01]} 25. c6 {[%emt 0:02:18]} (25. Ne2 $11) 25... Rbc7 $17 {[%emt 0:02:59]} 26. Bd2 {[%emt 0:00:04]} Bb4 {[%emt 0:03:35]} (26... Qb6 {with more complications.} 27. Be3 d4 28. Qxd4 Qa5) 27. Bxb4 {[%emt 0:07:52]} Qxb4 {[%emt 0:00:02]} 28. Qd4 {[%emt 0:00:07]} (28. Qa6 $142) 28... Qa5 {[%emt 0:04:48]} (28... Qxd4 29. Rxd4 f5 30. Rxa4 $17) 29. Rc5 {[%emt 0:02:42]} Qb6 {[%emt 0:00:01]} 30. Nd3 {[%emt 0:01:28]} (30. Rc3 $17) 30... Rxc6 $19 {[%emt 0:00:13]} 31. Rdc1 {[%emt 0:00:00]} h6 {[%emt 0:01:22]} 32. a3 {[%emt 0:02:08]} f5 {[%emt 0:00:55]} 33. R1c3 {[%emt 0:01:52]} fxg4 {[%emt 0:01:09]} 34. hxg4 {[%emt 0:00:00]} (34. fxg4 {was forced.} h5 35. Rc1) 34... Rxc5 {[%emt 0:01:01]} (34... h5 $142 35. Qb4 Rxc5 36. Nxc5 Qxb4 37. axb4 hxg4 38. fxg4 Bxg4 39. Nxa4 Rb8) 35. Nxc5 $19 {[%emt 0:00:49]} Rd8 {[%emt 0:03:21]} (35... Rc6 $19 36. Ka2 Qb5 37. Nxe6 Rxe6) 36. Re3 {[%emt 0:00:10]} (36. Nxe6 $17 Qxe6 37. Qxa4) 36... Rb8 {[%emt 0:01:07]} 37. Re2 {[%emt 0:00:48]} (37. Nxe6 $17 {might work better.} fxe6 38. Qe5) 37... Qd6 $2 {[%emt 0:02:58]} (37... Bd7 $19 {Threatens to win with ...Bb5.} 38. Re5 Bc6) 38. Re3 {[%emt 0:01:50]} (38. Nxe6 $11 {was the only way to keep the balance.} fxe6 39. Qxa7) 38... Rc8 $17 {[%emt 0:00:47]} 39. Rc3 {[%emt 0:00:07]} Bd7 {[%emt 0:00:56]} 40. Nxa4 {[%emt 0:01:01]} Re8 {[%emt 0:01:14]} 41. Nc5 {[%emt 0:00:16]} Re1+ {[%emt 0:01:00]} (41... Bc8 $142 42. Ka1 f5) 42. Ka2 $17 {[%emt 0:00:29]} Bb5 {[%emt 0:00:22]} 43. a4 {[%emt 0:01:36]} Bf1 {[%emt 0:00:14]} 44. Qf2 {[%emt 0:01:40]} (44. Qd2 $17 Re8 45. Qd4) 44... d4 {[%emt 0:03:33]} 45. Qxe1 {[%emt 0:00:34]} dxc3 {[%emt 0:00:01]} 46. Qxc3 {[%emt 0:00:14] [#]} Be2 {[%emt 0:00:33]} (46... Qc6 $1 $17 {And now ...Be2 would win.} 47. b3 Be2) 47. Ne4 $11 {[%emt 0:00:26]} Qf4 {[%emt 0:00:10]} 48. Qc8+ $1 {[%emt 0:00:44]} Kh7 {[%emt 0:00:00]} 49. Qc2 {[%emt 0:00:07]} f5 $1 {[%emt 0:00:27]} 50. Qxe2 {[%emt 0:00:25]} fxe4 {[%emt 0:00:02]} 51. fxe4 {[%emt 0:00:46]} a5 {[%emt 0:03:08]} 52. Kb3 {[%emt 0:01:20]} Qe5 {[%emt 0:00:29]} 53. Qf3 {[%emt 0:00:35]} Qe6+ {[%emt 0:00:18]} 54. Ka3 {[%emt 0:00:15]} Qd6+ {[%emt 0:00:15]} 55. Ka2 {[%emt 0:00:03]} Qe6+ {[%emt 0:00:05]} 56. b3 {[%emt 0:00:02]} g6 {[%emt 0:00:29]} 57. Qf4 {[%emt 0:00:18]} Qe7 {[%emt 0:01:01]} 58. e5 {[%emt 0:00:15]} h5 {[%emt 0:00:45]} 59. gxh5 {[%emt 0:01:02]} gxh5 {[%emt 0:00:01]} 60. Qf5+ {[%emt 0:00:14]} (60. b4 $1 $16 {[%cal Rb4a5]} Qe6+ 61. Kb2 (61. Ka3 Qh3+ 62. Ka2 axb4 $11) 61... axb4 62. a5 (62. Qxb4 Qxe5+ 63. Kc2 Qf5+ 64. Kd2 Qf2+ 65. Kd3 Qf3+ 66. Kd2 Qf2+ 67. Kd3 Qf3+ 68. Kd2 Qf2+ $11)) 60... Kh6 $11 {[%emt 0:00:01]} 61. e6 {[%emt 0:00:21]} h4 {[%emt 0:00:03]} 62. Qg4 {[%emt 0:00:51]} Qf6 {[%emt 0:00:17]} 63. Qe2 {[%emt 0:00:30]} Qe7 {[%emt 0:00:01]} 64. Qe3+ {[%emt 0:01:09]} Kg6 {[%emt 0:00:23]} 65. Qe4+ {[%emt 0:00:37]} Kg5 {[%emt 0:01:02]} 66. Qe5+ {[%emt 0:00:38]} Kg4 {[%emt 0:00:49]} 67. Qd5 {[%emt 0:00:37]} Qh7 $2 {[%emt 0:01:12][%mdl 8192]} (67... h3 $11) 68. Qd4+ $18 {[%emt 0:00:40]} (68. Qxa5 Qc2+ 69. Ka3 Qc1+ 70. Ka2 Qc2+ 71. Ka3 Qc1+ 72. Ka2 Qc2+ $11) 68... Kf3 {[%emt 0:01:07]} 69. Qf6+ {[%emt 0:00:47]} Kg4 {[%emt 0:00:27]} 70. e7 {[%emt 0:00:33]} Qc2+ {[%emt 0:00:01]} 71. Qb2 {[%emt 0:00:04]} Qe4 {[%emt 0:00:25]} 72. Qg7+ {[%emt 0:00:10]} Kh3 {[%emt 0:00:24]} 73. Qc3+ $2 {[%emt 0:00:04]} (73. Kb2) 73... Kg2 $18 {[%emt 0:01:15]} 74. Qd2+ $2 {[%emt 0:00:06]} ({Inferior is} 74. Qxa5 Qxe7 75. Qd5+ Kg3 $11) (74. Qc7 $18 {Black must now prevent Kb2.} h3 75. Kb2) 74... Kg3 $2 {[%emt 0:00:42][%mdl 8192]} (74... Kf3 $11) 75. Qd6+ {[%emt 0:00:04]} ({Worse is} 75. Qxa5 Qxe7 76. Qc3+ Kg4 $11) 75... Kg2 {[%emt 0:00:31]} 76. Ka3 $2 {[%emt 0:01:44]} (76. Kb2 {White threatens Qd7 and mate.} Qe2+ 77. Kc3 Qf3+ 78. Kc4 Qe4+ 79. Kc5 Qe3+ 80. Kc6) 76... h3 $18 {[%emt 0:00:01]} 77. Qd7 $2 {[%emt 0:00:50]} ({White should play} 77. Kb2 $18 {Qd2+ is the strong threat.} h2 78. Qd2+ Kg3 79. Qc3+ Kf2 80. Qc5+ (80. Qxa5 Qe2+ 81. Kc3 Qe1+ {[%mdl 64] Skewer} 82. Kd3 Qxa5 83. e8=Q Qd5+ 84. Kc3 Qf3+ 85. Kb4 h1=Q 86. Qe5 Qf8+ 87. Qc5+ Qxc5+ 88. Kxc5 Qh5+ 89. Kb6 Qd5 90. a5 Qxb3+ 91. Kc7 Qc3+ 92. Kd7 Qxa5 93. Ke6 Ke3 94. Kf6 Kf4 95. Ke7 Ke5 96. Kd7 Qb5+ 97. Kc7 Ke6 98. Kc8 Kd6 99. Kd8 Qd7#) 80... Kg3 81. Qc7+ Kg2 82. Qc2+ {[%mdl 64] Skewer} Qxc2+ 83. Kxc2) 77... Qe5 $1 $11 {[%emt 0:00:39]} (77... Qe1 78. Kb2 (78. e8=R $2 Qa1#) 78... Qf2+ 79. Kc3 Qf6+ 80. Kc4 Qh4+ 81. Kc5 Qb4+ 82. Kc6 Qe4+ 83. Kb6 Qg6+ 84. Kxa5 Qg5+ 85. Ka6 Qh6+ 86. Kb5 Qg5+ 87. Kc6 Qh6+ 88. Kc7 Qf4+ 89. Kc8) 78. Ka2 {[%emt 0:00:52]} (78. e8=R $2 Qa1#) 78... Qe2+ {[%emt 0:00:15]} 79. Ka3 {[%emt 0:00:14]} Qe5 $1 {[%emt 0:00:01]} (79... Qe1 $2 80. Kb2 (80. e8=R $2 Qa1#) 80... Qf2+ 81. Kc3 Qg3+ 82. Kc4 Qh4+ 83. Kc5 Qb4+ 84. Kc6 Qc3+ 85. Kb7 Qxb3+ 86. Ka6 Qc4+ 87. Ka7 $18) 80. Qc6+ {[%emt 0:00:53]} (80. e8=R $2 Qa1#) 80... Kg3 {[%emt 0:00:54]} 81. Qg6+ {[%emt 0:00:02]} Kh2 {[%emt 0:00:52]} 82. Qc2+ {[%emt 0:00:13]} Kg3 {[%emt 0:00:08]} 83. Qd3+ {[%emt 0:00:04]} Kh2 {[%emt 0:00:47]} 84. Qd2+ {[%emt 0:00:51]} Kg3 {[%emt 0:00:04]} 85. Qd3+ {[%emt 0:00:25]} Kh2 {[%emt 0:00:01]} 86. Qc2+ {[%emt 0:00:12]} Kg3 {[%emt 0:00:09]} 87. Qg6+ {[%emt 0:01:05]} Kh2 {[%emt 0:00:02]} 88. Qc2+ {[%emt 0:00:39]} 1/2-1/2

[Event "IX Iberoamericano Championship 2023"]
[Site "Panama City"]
[Date "2023.12.01"]
[Round "7.3"]
[White "Rodriguez Vila, Andres"]
[Black "Mareco, Sandro"]
[Result "0-1"]
[ECO "C00"]
[WhiteElo "2405"]
[BlackElo "2606"]
[Annotator "TA"]
[PlyCount "68"]
[EventDate "2023.11.27"]
[EventType "swiss"]
[EventCountry "PAN"]
[SourceTitle "playchess.com"]
[Source "ChessBase"]
[SourceQuality "1"]
[TimeControl "5400+30"]

{[%evp 18,68,3,0,-15,-12,0,0,0,-20,-9,-45,-25,-74,-64,-54,-59,-76,-36,-26,-36,-70,-49,-102,-88,-113,-123,-135,-101,-66,-20,-167,-162,-224,-213,-310,-298,-301,-152,-299,-290,-560,-204,-548,-538,-512,-416,-1622,-564,-1597,-1474,-1354,-1345]} 1. Nf3 {[%emt 0:00:21]} d5 {[%emt 0:00:21]} 2. g3 {[%emt 0:00:08]} Nf6 {[%emt 0:00:09]} 3. Bg2 {[%emt 0:00:23]} e6 {[%emt 0:00:14]} 4. O-O {[%emt 0:00:06]} Be7 {[%emt 0:00:02]} 5. d3 {[%emt 0:00:26]} O-O {[%emt 0:00:07]} 6. Nbd2 {[%emt 0:00:12]} c5 {[%emt 0:00:04]} 7. e4 {[%emt 0:00:04]} Nc6 {[%emt 0:00:03]} 8. Re1 {[%emt 0:00:22]} Qc7 {[%emt 0:00:13]} 9. c3 {[%emt 0:03:29]} b6 {[%emt 0:07:43]} 10. Nf1 {[%emt 0:00:20]} dxe4 {[%emt 0:13:10] C00: French: Unusual White 2nd moves.} 11. dxe4 {[%emt 0:00:57]} (11. Bf4 {seems wilder.} e5 12. Nxe5 Nxe5 13. d4) 11... Rd8 {[%emt 0:05:54]} 12. Qa4 {[%emt 0:00:08]} Bb7 {[%emt 0:11:09] The position is equal.} 13. e5 {[%emt 0:00:27]} Nd7 {[%emt 0:00:09][%cal Bf6d7,Bd7c5,Bc5d3,Bd3f2][%mdl 32] [#]} 14. h4 $146 {[%emt 0:09:34]} ({Predecessor:} 14. Qg4 Nf8 15. h4 Kh8 16. Bf4 Ng6 17. h5 Nxf4 18. Qxf4 Rg8 19. Qxf7 Nd8 20. Qf4 {1-0 Strnad,M (2230)-Brousek,J (2361) CZE-Cup15 sf02 email 2004}) 14... Rac8 {[%emt 0:09:51]} (14... Ncxe5 15. Nxe5 Bxg2 16. Nxf7 Kxf7 17. Kxg2 $11) 15. h5 {[%emt 0:12:30]} (15. N1h2 $11) 15... h6 $17 {[%emt 0:01:18]} (15... Ndxe5 $2 16. Nxe5 Nxe5 17. Bxb7 $18 (17. Qxa7 $2 Bxg2 {[%mdl 64] Discovered Attack} 18. Qxc7 Nf3+ {[%mdl 64] Zwischenzug, Double Attack} 19. Kxg2 Nxe1+ 20. Kh3 Rxc7 $19)) 16. N1h2 {[%emt 0:08:56]} Bf8 $1 {[%emt 0:04:09]} ({Of course not} 16... Ncxe5 17. Nxe5 (17. Qxa7 $2 {is the wrong capture.} Nd3 $19) 17... Bxg2 18. Nxf7 (18. Nxd7 Bc6 $17) 18... Kxf7 19. Kxg2 $11) 17. Qf4 {[%emt 0:04:55]} c4 {[%emt 0:07:40]} 18. Qxc4 {[%emt 0:06:44]} Nc5 {[%emt 0:00:16]} ({Don't play} 18... Ncxe5 19. Qxc7 Nxf3+ 20. Bxf3 $14) 19. Bf1 {[%emt 0:00:08]} Kh8 {[%emt 0:04:18]} 20. Be3 {[%emt 0:14:58]} (20. Rb1 $15) 20... Nxe5 {[%emt 0:03:39]} 21. Nxe5 {[%emt 0:00:54]} Qxe5 {[%emt 0:00:03]} 22. Qh4 {[%emt 0:08:04]} Nd3 {[%emt 0:05:23]} 23. Red1 {[%emt 0:02:07]} Qd5 {[%emt 0:01:30] Black has more active pieces. The white rooks are badly placed.} 24. f3 {[%emt 0:06:52] [#] Now White is beyond hope.} (24. Ng4 $11 {and White stays safe.} Qe4 25. Bd4) 24... Qe5 $1 $19 {[%emt 0:01:02]} 25. Bf2 {[%emt 0:14:27]} (25. Ng4 $142 Qf5 26. Be2) 25... Nxf2 {[%emt 0:03:51]} 26. Rxd8 {[%emt 0:00:02]} (26. Kxf2 {keeps fighting.} Bd6 27. Rac1) 26... Rxd8 {[%emt 0:00:14]} 27. Qxd8 {[%emt 0:00:04]} Qxg3+ {[%emt 0:00:05]} 28. Bg2 {[%emt 0:00:03]} Kg8 {[%emt 0:01:57]} 29. Rf1 $2 {[%emt 0:04:42]} (29. Nf1 Nh3+ 30. Kh1) 29... Nh3+ $40 {[%emt 0:00:38][%mdl 128] Black attacks with force.} 30. Kh1 {[%emt 0:00:01]} Nf4 {[%emt 0:00:36][%csl Gf4,LRg2,LRh5][%cal Rg3g2]} 31. Rg1 {[%emt 0:01:58]} Nxh5 {[%emt 0:00:41]} 32. f4 {[%emt 0:01:32]} (32. Nf1 $142 Qf2 33. Qd4 Qxb2 34. Qh4) 32... Bxg2+ {[%emt 0:00:51][%mdl 64] [#] Deflection. Black is clearly winning.} 33. Rxg2 {[%emt 0:00:02]} Qe1+ {[%emt 0:00:08]} 34. Rg1 {[%emt 0:00:02]} Qe4+ {[%emt 0:20:02] An entertaining game by Mareco.   Weighted Error Value: White=0.66/Black=0.14 (very precise)} 0-1

[Event "IX Iberoamericano Championship 2023"]
[Site "Panama City"]
[Date "2023.12.01"]
[Round "7.4"]
[White "Zambrana, Osvaldo"]
[Black "Hernandez Guerrero, Gilberto"]
[Result "1/2-1/2"]
[ECO "B48"]
[WhiteElo "2400"]
[BlackElo "2527"]
[Annotator "TA"]
[PlyCount "72"]
[EventDate "2023.11.27"]
[EventType "swiss"]
[EventCountry "PAN"]
[SourceTitle "playchess.com"]
[Source "ChessBase"]
[SourceQuality "1"]
[TimeControl "5400+30"]

{[%evp 16,72,28,-2,19,15,3,0,10,0,0,0,0,-7,0,0,0,6,0,-21,0,0,0,0,0,-27,-40,-58,-57,-35,-42,-56,-53,-85,-19,-16,-20,-8,-11,-22,0,0,0,0,0,0,0,0,0,0,0,0,0,0,0,0,0,0,0]} 1. e4 {[%emt 0:13:40]} c5 {[%emt 0:00:21]} 2. Nf3 {[%emt 0:00:12]} e6 {[%emt 0:00:10]} 3. d4 {[%emt 0:00:05]} cxd4 {[%emt 0:00:05]} 4. Nxd4 {[%emt 0:00:03]} Nc6 {[%emt 0:00:06]} 5. Nc3 {[%emt 0:00:06]} Qc7 {[%emt 0:00:11]} 6. Be3 {[%emt 0:00:09]} a6 {[%emt 0:00:10]} 7. Qd2 {[%emt 0:00:11]} Nf6 {[%emt 0:00:27]} 8. O-O-O {[%emt 0:00:11]} b5 {[%emt 0:00:25] 8...Be7 gains popularity.} 9. f3 {[%emt 0:00:15]} (9. Bf4 $5 {[%cal Rf4c7]} e5 10. Nxc6 exf4 11. e5 dxc6 12. exf6 $14) 9... Be7 {[%emt 0:00:16] B48: Sicilian: Taimanov: 5 Nc3 Qc7 6 Be3 a6 without Be2.} 10. g4 {[%emt 0:02:33]} Nxd4 {[%emt 0:01:46]} 11. Qxd4 {[%emt 0:02:04]} Bb7 $1 {[%emt 0:01:02]} 12. g5 {[%emt 0:04:30]} Nh5 {[%emt 0:00:49]} 13. Kb1 {[%emt 0:04:25]} Rc8 {[%emt 0:06:18] ...b4 would be deadly.} 14. a3 {[%emt 0:06:00]} Bc5 {[%emt 0:19:04]} 15. Qd2 {[%emt 0:09:41] [#] Strongly threatening Bxc5.} Bxe3 {[%emt 0:03:25]} 16. Qxe3 {[%emt 0:00:03]} O-O {[%emt 0:00:09]} 17. h4 {[%emt 0:07:01][%cal Bh2h4,Bh4h5][%mdl 32] [#]} Rfd8 $146 {[%emt 0:07:16]} ({Predecessor:} 17... f5 18. gxf6 Rxf6 19. Rg1 Rf7 20. Qd2 Rcf8 21. Qg5 Nf4 22. Ne2 d5 23. Nxf4 Qxf4 {½-½ Pelekis,G (2039)-Schubert,V (2204) CP-2016-P-00045}) 18. Bh3 {[%emt 0:03:46]} Nf4 {[%emt 0:04:58]} 19. h5 {[%emt 0:00:43]} Qe5 {[%emt 0:04:40]} 20. Bg4 {[%emt 0:02:32]} d5 {[%emt 0:01:35]} (20... Qxg5 21. Ne2 e5 22. Bxd7 $16) 21. Qb6 {[%emt 0:01:51]} d4 {[%emt 0:03:29]} (21... Ba8 {feels hotter.} 22. g6 hxg6 23. hxg6 Nxg6 24. Qxa6 dxe4 25. fxe4 Bxe4 26. Rxd8+ Rxd8 27. Rd1 Rb8) 22. g6 {[%emt 0:00:43]} hxg6 {[%emt 0:08:58]} ({Don't play} 22... fxg6 23. Ne2 gxh5 24. Rxh5 (24. Rxd4 Rxd4 25. Nxd4 hxg4 $15) 24... Nxh5 25. Bxe6+ (25. Qxb7 Kh8 $17) 25... Kf8 26. Bxc8 (26. Qxb7 $2 Qxe6 27. Nxd4 Qg6 $19) 26... Rxc8 27. Qxb7 $16) 23. hxg6 {[%emt 0:15:06]} Nxg6 {[%emt 0:01:27] Hoping for ...Rb8.} 24. Bh5 {[%emt 0:04:35] [#]} Qc7 {[%emt 0:06:11]} ({Black should play} 24... Rb8 $1 $17 {Threatens to win with ...Nf4.} 25. Bxg6 fxg6) 25. Qxc7 $11 {[%emt 0:00:11] The position is equal.} Rxc7 {[%emt 0:00:05]} 26. Bxg6 {[%emt 0:00:05]} fxg6 {[%emt 0:00:06]} 27. Rhg1 {[%emt 0:00:36]} Rcd7 {[%emt 0:06:05]} 28. Ne2 {[%emt 0:00:15]} d3 {[%emt 0:00:24]} 29. Nf4 {[%emt 0:02:02][%cal Rf4d3]} dxc2+ {[%emt 0:00:21]} 30. Kxc2 {[%emt 0:00:05]} Rxd1 {[%emt 0:07:11]} 31. Rxd1 {[%emt 0:00:02]} Rxd1 {[%emt 0:00:17]} 32. Kxd1 {[%emt 0:00:02] KB-KN} Kf7 {[%emt 0:00:13]} 33. Nd3 {[%emt 0:03:15]} Kf6 {[%emt 0:00:18]} 34. Ke2 {[%emt 0:00:25]} e5 {[%emt 0:03:44]} 35. Kf2 {[%emt 0:01:21]} a5 {[%emt 0:00:44]} 36. b4 {[%emt 0:01:08]} axb4 {[%emt 0:00:11] Weighted Error Value: White=0.08 (flawless) /Black=0.06 (flawless)} 1/2-1/2

[Event "IX Iberoamericano Championship 2023"]
[Site "Panama City"]
[Date "2023.12.01"]
[Round "7.5"]
[White "Almeida Quintana, Omar"]
[Black "Flores Quillas, Diego Saul Rodri"]
[Result "1/2-1/2"]
[ECO "E11"]
[WhiteElo "2509"]
[BlackElo "2414"]
[Annotator "TA"]
[PlyCount "48"]
[EventDate "2023.11.27"]
[EventType "swiss"]
[EventCountry "PAN"]
[SourceTitle "playchess.com"]
[Source "ChessBase"]
[SourceQuality "1"]
[TimeControl "5400+30"]

{[%evp 10,48,22,0,7,0,32,24,41,29,52,31,40,15,21,25,55,52,54,-19,0,0,0,0,0,0,6,5,5,5,10,2,14,5,7,10,0,0,0,0,0]} 1. d4 {[%emt 0:00:02]} Nf6 {[%emt 0:16:57]} 2. Nf3 {[%emt 0:00:07]} e6 {[%emt 0:00:04]} 3. c4 {[%emt 0:00:05]} Bb4+ {[%emt 0:00:05]} 4. Bd2 {[%emt 0:00:19]} a5 {[%emt 0:00:06]} 5. g3 {[%emt 0:00:05]} d5 {[%emt 0:00:10]} 6. a3 {[%emt 0:00:32]} Be7 {[%emt 0:03:13] E11: Bogo-Indian.} 7. Qc2 {[%emt 0:02:17]} b6 {[%emt 0:03:35]} 8. cxd5 {[%emt 0:03:17]} exd5 {[%emt 0:00:19] White has an edge.} 9. Bf4 {[%emt 0:01:04] [#]} c5 $146 {[%emt 0:03:06]} ({Predecessor:} 9... Bd6 10. Ne5 O-O 11. Bg2 Bb7 12. Nc3 Qe8 13. O-O Na6 14. Qb3 Qe6 15. Nb5 Ne8 {1-0 Spiess,G (2377)-Schuetzhold,F (1918) Leipzig VfB op 15th 2008 (1)}) 10. Nc3 {[%emt 0:00:33]} O-O {[%emt 0:01:09]} 11. Rd1 {[%emt 0:01:06]} Nc6 {[%emt 0:08:43]} 12. Bg2 {[%emt 0:05:06]} Be6 {[%emt 0:00:17]} 13. O-O {[%emt 0:02:43]} Rc8 {[%emt 0:00:47]} 14. Bg5 {[%emt 0:05:52]} ({White should play} 14. e3 $14) 14... Nxd4 {[%emt 0:16:00] The position is equal.} 15. Nxd4 {[%emt 0:00:09]} cxd4 {[%emt 0:00:02]} 16. Rxd4 {[%emt 0:00:07]} h6 {[%emt 0:00:03]} 17. Bf4 {[%emt 0:09:45]} Bc5 {[%emt 0:00:34]} 18. Rd2 {[%emt 0:03:45]} Qe7 {[%emt 0:00:57] ...d4 would be deadly.} 19. Be5 {[%emt 0:02:03]} Ne4 {[%emt 0:04:33][%mdl 64] [#] Deflection} 20. Bxe4 {[%emt 0:05:21]} (20. Nxd5 $2 {too greedy.} Bxd5 21. Bc3 Nxd2 22. Qxd2 Bxg2 23. Kxg2 Rfd8 $19) ({Don't play} 20. Nxe4 Bxf2+ 21. Nxf2 Rxc2 22. Rxc2 Bf5 $17) 20... dxe4 {[%emt 0:00:05]} 21. Qxe4 {[%emt 0:00:20]} Bh3 {[%emt 0:01:11] And now ...Rfe8 would win.} 22. Nd5 $1 {[%emt 0:04:38]} Qe8 {[%emt 0:00:09] Hoping for ...f6.} 23. Qh4 {[%emt 0:01:31] [#] Inhibits f6. Nf6+ is the strong threat. The board is on fire.} Bxf1 {[%emt 0:14:23] A strong pair of Bishops.} 24. Nf6+ {[%emt 0:00:50]} gxf6 {[%emt 0:00:04] Weighted Error Value: White=0.10 (very precise) /Black=0.07 (flawless)} 1/2-1/2